Workbook

Sheet 钟山区2022年上半年公开招聘事业单位工作人员笔试成绩排名
A1: 六盘水市钟山区2022年上半年面向社会公开招聘事业单位工作人员笔试成绩排名
A2: 职位代码 | B2: 姓名 | C2: 准考证号 | D2: 笔试科目 | E2: 笔试成绩 | F2: 备注 | G2: 职位排名
A3: 20122040101-企业发展服务中心工作人员(钟山产业园区管委会) | B3: 管彤 | C3: ="20220122626" -> 20220122626 | D3: 《公共基础知识》 | E3: 118.7 | G3: =SUMPRODUCT(--((A3=$A$3:$A$16021)*$E$3:$E$16021>E3))+1 -> 1
A4: 20122040101-企业发展服务中心工作人员(钟山产业园区管委会) | B4: 彭蓉 | C4: ="20220090228" -> 20220090228 | D4: 《公共基础知识》 | E4: 118.1 | G4: 2
A5: 20122040101-企业发展服务中心工作人员(钟山产业园区管委会) | B5: 杨婉婷 | C5: ="20220072418" -> 20220072418 | D5: 《公共基础知识》 | E5: 117.89 | G5: 3
A6: 20122040101-企业发展服务中心工作人员(钟山产业园区管委会) | B6: 张龙军 | C6: ="20220090121" -> 20220090121 | D6: 《公共基础知识》 | E6: 115.96 | G6: 4
A7: 20122040101-企业发展服务中心工作人员(钟山产业园区管委会) | B7: 田题 | C7: ="20220122226" -> 20220122226 | D7: 《公共基础知识》 | E7: 115.68 | G7: 5
A8: 20122040101-企业发展服务中心工作人员(钟山产业园区管委会) | B8: 吴兆航 | C8: ="20220083016" -> 20220083016 | D8: 《公共基础知识》 | E8: 115.65 | G8: 6
A9: 20122040101-企业发展服务中心工作人员(钟山产业园区管委会) | B9: 邓青青 | C9: ="20220075312" -> 20220075312 | D9: 《公共基础知识》 | E9: 115.5 | G9: 7
A10: 20122040101-企业发展服务中心工作人员(钟山产业园区管委会) | B10: 程婷 | C10: ="20220103406" -> 20220103406 | D10: 《公共基础知识》 | E10: 114.08 | G10: 8
A11: 20122040101-企业发展服务中心工作人员(钟山产业园区管委会) | B11: 李文碧 | C11: ="20220074817" -> 20220074817 | D11: 《公共基础知识》 | E11: 113.99 | G11: 9
A12: 20122040101-企业发展服务中心工作人员(钟山产业园区管委会) | B12: 韩泞江 | C12: ="20220122410" -> 20220122410 | D12: 《公共基础知识》 | E12: 113.55 | G12: 10
A13: 20122040101-企业发展服务中心工作人员(钟山产业园区管委会) | B13: 赵皓楠 | C13: ="20220100423" -> 20220100423 | D13: 《公共基础知识》 | E13: 113.28 | G13: 11
A14: 20122040101-企业发展服务中心工作人员(钟山产业园区管委会) | B14: 张淼杰 | C14: ="20220075818" -> 20220075818 | D14: 《公共基础知识》 | E14: 113.04 | G14: 12
A15: 20122040101-企业发展服务中心工作人员(钟山产业园区管委会) | B15: 赵庆达 | C15: ="20220110803" -> 20220110803 | D15: 《公共基础知识》 | E15: 112.87 | G15: 13
A16: 20122040101-企业发展服务中心工作人员(钟山产业园区管委会) | B16: 龙海浪 | C16: ="20220073502" -> 20220073502 | D16: 《公共基础知识》 | E16: 111.92 | G16: 14
A17: 20122040101-企业发展服务中心工作人员(钟山产业园区管委会) | B17: 刘玉莲 | C17: ="20220083203" -> 20220083203 | D17: 《公共基础知识》 | E17: 111.68 | G17: 15
A18: 20122040101-企业发展服务中心工作人员(钟山产业园区管委会) | B18: 马亚玲 | C18: ="20220073917" -> 20220073917 | D18: 《公共基础知识》 | E18: 111.63 | G18: 16
A19: 20122040101-企业发展服务中心工作人员(钟山产业园区管委会) | B19: 杨清 | C19: ="20220121415" -> 20220121415 | D19: 《公共基础知识》 | E19: 111.04 | G19: 17
A20: 20122040101-企业发展服务中心工作人员(钟山产业园区管委会) | B20: 李洁丽 | C20: ="20220080826" -> 20220080826 | D20: 《公共基础知识》 | E20: 110.87 | G20: 18
A21: 20122040101-企业发展服务中心工作人员(钟山产业园区管委会) | B21: 宫溪 | C21: ="20220072912" -> 20220072912 | D21: 《公共基础知识》 | E21: 110.54 | G21: 19
A22: 20122040101-企业发展服务中心工作人员(钟山产业园区管委会) | B22: 卢春春 | C22: ="20220082815" -> 20220082815 | D22: 《公共基础知识》 | E22: 110.53 | G22: 20
A23: 20122040101-企业发展服务中心工作人员(钟山产业园区管委会) | B23: 胡灿 | C23: ="20220091016" -> 20220091016 | D23: 《公共基础知识》 | E23: 110.19 | G23: 21
A24: 20122040101-企业发展服务中心工作人员(钟山产业园区管委会) | B24: 代雨蒙 | C24: ="20220132130" -> 20220132130 | D24: 《公共基础知识》 | E24: 110.15 | G24: 22
A25: 20122040101-企业发展服务中心工作人员(钟山产业园区管委会) | B25: 马永雷 | C25: ="20220093329" -> 20220093329 | D25: 《公共基础知识》 | E25: 110.14 | G25: 23
A26: 20122040101-企业发展服务中心工作人员(钟山产业园区管委会) | B26: 方成成 | C26: ="20220110403" -> 20220110403 | D26: 《公共基础知识》 | E26: 110.11 | G26: 24
A27: 20122040101-企业发展服务中心工作人员(钟山产业园区管委会) | B27: 普丽仙 | C27: ="20220081206" -> 20220081206 | D27: 《公共基础知识》 | E27: 109.6 | G27: 25
A28: 20122040101-企业发展服务中心工作人员(钟山产业园区管委会) | B28: 戴奇 | C28: ="20220120925" -> 20220120925 | D28: 《公共基础知识》 | E28: 109.57 | G28: 26
A29: 20122040101-企业发展服务中心工作人员(钟山产业园区管委会) | B29: 王朔 | C29: ="20220083907" -> 20220083907 | D29: 《公共基础知识》 | E29: 109.21 | G29: 27
A30: 20122040101-企业发展服务中心工作人员(钟山产业园区管委会) | B30: 蔡立华 | C30: ="20220094005" -> 20220094005 | D30: 《公共基础知识》 | E30: 109.12 | G30: 28
A31: 20122040101-企业发展服务中心工作人员(钟山产业园区管委会) | B31: 谢杨宏 | C31: ="20220092915" -> 20220092915 | D31: 《公共基础知识》 | E31: 109.05 | G31: 29
A32: 20122040101-企业发展服务中心工作人员(钟山产业园区管委会) | B32: 陈忠贵 | C32: ="20220123131" -> 20220123131 | D32: 《公共基础知识》 | E32: 109.05 | G32: 29
A33: 20122040101-企业发展服务中心工作人员(钟山产业园区管委会) | B33: 赵文堂 | C33: ="20220093818" -> 20220093818 | D33: 《公共基础知识》 | E33: 109 | G33: 31
A34: 20122040101-企业发展服务中心工作人员(钟山产业园区管委会) | B34: 翁维谦 | C34: ="20220100126" -> 20220100126 | D34: 《公共基础知识》 | E34: 108.89 | G34: 32
A35: 20122040101-企业发展服务中心工作人员(钟山产业园区管委会) | B35: 张跃 | C35: ="20220071812" -> 20220071812 | D35: 《公共基础知识》 | E35: 108.86 | G35: 33
A36: 20122040101-企业发展服务中心工作人员(钟山产业园区管委会) | B36: 谌月 | C36: ="20220120425" -> 20220120425 | D36: 《公共基础知识》 | E36: 108.85 | G36: 34
A37: 20122040101-企业发展服务中心工作人员(钟山产业园区管委会) | B37: 屠建瑞 | C37: ="20220100125" -> 20220100125 | D37: 《公共基础知识》 | E37: 108.55 | G37: 35
A38: 20122040101-企业发展服务中心工作人员(钟山产业园区管委会) | B38: 何华雄 | C38: ="20220132326" -> 20220132326 | D38: 《公共基础知识》 | E38: 108.41 | G38: 36
A39: 20122040101-企业发展服务中心工作人员(钟山产业园区管委会) | B39: 黄坤奇 | C39: ="20220123807" -> 20220123807 | D39: 《公共基础知识》 | E39: 108.36 | G39: 37
A40: 20122040101-企业发展服务中心工作人员(钟山产业园区管委会) | B40: 龙青青 | C40: ="20220070529" -> 20220070529 | D40: 《公共基础知识》 | E40: 108.32 | G40: 38
A41: 20122040101-企业发展服务中心工作人员(钟山产业园区管委会) | B41: 李红存 | C41: ="20220104124" -> 20220104124 | D41: 《公共基础知识》 | E41: 108.24 | G41: 39
A42: 20122040101-企业发展服务中心工作人员(钟山产业园区管委会) | B42: 晏太 | C42: ="20220133107" -> 20220133107 | D42: 《公共基础知识》 | E42: 108.19 | G42: 40
A43: 20122040101-企业发展服务中心工作人员(钟山产业园区管委会) | B43: 黎文丹 | C43: ="20220090305" -> 20220090305 | D43: 《公共基础知识》 | E43: 108 | G43: 41
A44: 20122040101-企业发展服务中心工作人员(钟山产业园区管委会) | B44: 赵海燕 | C44: ="20220100309" -> 20220100309 | D44: 《公共基础知识》 | E44: 107.97 | G44: 42
A45: 20122040101-企业发展服务中心工作人员(钟山产业园区管委会) | B45: 陈焕 | C45: ="20220084027" -> 20220084027 | D45: 《公共基础知识》 | E45: 107.95 | G45: 43
A46: 20122040101-企业发展服务中心工作人员(钟山产业园区管委会) | B46: 田茂彪 | C46: ="20220092406" -> 20220092406 | D46: 《公共基础知识》 | E46: 107.94 | G46: 44
A47: 20122040101-企业发展服务中心工作人员(钟山产业园区管委会) | B47: 刘祖璠 | C47: ="20220101632" -> 20220101632 | D47: 《公共基础知识》 | E47: 107.9 | G47: 45
A48: 20122040101-企业发展服务中心工作人员(钟山产业园区管委会) | B48: 邹成焕 | C48: ="20220072121" -> 20220072121 | D48: 《公共基础知识》 | E48: 107.77 | G48: 46
A49: 20122040101-企业发展服务中心工作人员(钟山产业园区管委会) | B49: 廖曼 | C49: ="20220103719" -> 20220103719 | D49: 《公共基础知识》 | E49: 107.5 | G49: 47
A50: 20122040101-企业发展服务中心工作人员(钟山产业园区管委会) | B50: 柳磊 | C50: ="20220113528" -> 20220113528 | D50: 《公共基础知识》 | E50: 107.3 | G50: 48
A51: 20122040101-企业发展服务中心工作人员(钟山产业园区管委会) | B51: 李珊 | C51: ="20220093614" -> 20220093614 | D51: 《公共基础知识》 | E51: 106.84 | G51: 49
A52: 20122040101-企业发展服务中心工作人员(钟山产业园区管委会) | B52: 黄远 | C52: ="20220123404" -> 20220123404 | D52: 《公共基础知识》 | E52: 106.84 | G52: 49
A53: 20122040101-企业发展服务中心工作人员(钟山产业园区管委会) | B53: 杨继 | C53: ="20220101214" -> 20220101214 | D53: 《公共基础知识》 | E53: 106.63 | G53: 51
A54: 20122040101-企业发展服务中心工作人员(钟山产业园区管委会) | B54: 詹晓晨 | C54: ="20220074802" -> 20220074802 | D54: 《公共基础知识》 | E54: 106.33 | G54: 52
A55: 20122040101-企业发展服务中心工作人员(钟山产业园区管委会) | B55: 武鹏程 | C55: ="20220122014" -> 20220122014 | D55: 《公共基础知识》 | E55: 106.29 | G55: 53
A56: 20122040101-企业发展服务中心工作人员(钟山产业园区管委会) | B56: 刘旺 | C56: ="20220070829" -> 20220070829 | D56: 《公共基础知识》 | E56: 106.23 | G56: 54
A57: 20122040101-企业发展服务中心工作人员(钟山产业园区管委会) | B57: 马于 | C57: ="20220074312" -> 20220074312 | D57: 《公共基础知识》 | E57: 106.12 | G57: 55
A58: 20122040101-企业发展服务中心工作人员(钟山产业园区管委会) | B58: 王亚亚 | C58: ="20220081914" -> 20220081914 | D58: 《公共基础知识》 | E58: 106.07 | G58: 56
A59: 20122040101-企业发展服务中心工作人员(钟山产业园区管委会) | B59: 唐金友 | C59: ="20220130417" -> 20220130417 | D59: 《公共基础知识》 | E59: 105.94 | G59: 57
A60: 20122040101-企业发展服务中心工作人员(钟山产业园区管委会) | B60: 晏露 | C60: ="20220100111" -> 20220100111 | D60: 《公共基础知识》 | E60: 105.93 | G60: 58
A61: 20122040101-企业发展服务中心工作人员(钟山产业园区管委会) | B61: 周芷惟 | C61: ="20220122214" -> 20220122214 | D61: 《公共基础知识》 | E61: 105.91 | G61: 59
A62: 20122040101-企业发展服务中心工作人员(钟山产业园区管委会) | B62: 徐宁娅 | C62: ="20220120723" -> 20220120723 | D62: 《公共基础知识》 | E62: 105.87 | G62: 60
A63: 20122040101-企业发展服务中心工作人员(钟山产业园区管委会) | B63: 安金云 | C63: ="20220100624" -> 20220100624 | D63: 《公共基础知识》 | E63: 105.85 | G63: 61
A64: 20122040101-企业发展服务中心工作人员(钟山产业园区管委会) | B64: 陶师 | C64: ="20220100413" -> 20220100413 | D64: 《公共基础知识》 | E64: 105.81 | G64: 62
A65: 20122040101-企业发展服务中心工作人员(钟山产业园区管委会) | B65: 叶杜鹃 | C65: ="20220093623" -> 20220093623 | D65: 《公共基础知识》 | E65: 105.64 | G65: 63
A66: 20122040101-企业发展服务中心工作人员(钟山产业园区管委会) | B66: 刘飞 | C66: ="20220113513" -> 20220113513 | D66: 《公共基础知识》 | E66: 105.62 | G66: 64
A67: 20122040101-企业发展服务中心工作人员(钟山产业园区管委会) | B67: 沈晏 | C67: ="20220112007" -> 20220112007 | D67: 《公共基础知识》 | E67: 105.6 | G67: =SUMPRODUCT(--((A67=$A$3:$A$16021)*$E$3:$E$16021>E67))+1 -> 65
A68: 20122040101-企业发展服务中心工作人员(钟山产业园区管委会) | B68: 李会丹 | C68: ="20220091604" -> 20220091604 | D68: 《公共基础知识》 | E68: 105.54 | G68: 66
A69: 20122040101-企业发展服务中心工作人员(钟山产业园区管委会) | B69: 孔健 | C69: ="20220073010" -> 20220073010 | D69: 《公共基础知识》 | E69: 105.46 | G69: 67
A70: 20122040101-企业发展服务中心工作人员(钟山产业园区管委会) | B70: 何睿 | C70: ="20220072720" -> 20220072720 | D70: 《公共基础知识》 | E70: 105.37 | G70: 68
A71: 20122040101-企业发展服务中心工作人员(钟山产业园区管委会) | B71: 敖秀梅 | C71: ="20220083302" -> 20220083302 | D71: 《公共基础知识》 | E71: 105.16 | G71: 69
A72: 20122040101-企业发展服务中心工作人员(钟山产业园区管委会) | B72: 姚乐 | C72: ="20220131227" -> 20220131227 | D72: 《公共基础知识》 | E72: 105.06 | G72: 70
A73: 20122040101-企业发展服务中心工作人员(钟山产业园区管委会) | B73: 罗霜 | C73: ="20220072429" -> 20220072429 | D73: 《公共基础知识》 | E73: 104.89 | G73: 71
A74: 20122040101-企业发展服务中心工作人员(钟山产业园区管委会) | B74: 李海林 | C74: ="20220090913" -> 20220090913 | D74: 《公共基础知识》 | E74: 104.89 | G74: 71
A75: 20122040101-企业发展服务中心工作人员(钟山产业园区管委会) | B75: 马文露 | C75: ="20220082901" -> 20220082901 | D75: 《公共基础知识》 | E75: 104.84 | G75: 73
A76: 20122040101-企业发展服务中心工作人员(钟山产业园区管委会) | B76: 祖艳琳 | C76: ="20220132823" -> 20220132823 | D76: 《公共基础知识》 | E76: 104.74 | G76: 74
A77: 20122040101-企业发展服务中心工作人员(钟山产业园区管委会) | B77: 毛腾 | C77: ="20220092015" -> 20220092015 | D77: 《公共基础知识》 | E77: 104.7 | G77: 75
A78: 20122040101-企业发展服务中心工作人员(钟山产业园区管委会) | B78: 鲁茜 | C78: ="20220102722" -> 20220102722 | D78: 《公共基础知识》 | E78: 104.43 | G78: 76
A79: 20122040101-企业发展服务中心工作人员(钟山产业园区管委会) | B79: 任祥源 | C79: ="20220071819" -> 20220071819 | D79: 《公共基础知识》 | E79: 104.23 | G79: 77
A80: 20122040101-企业发展服务中心工作人员(钟山产业园区管委会) | B80: 雷文蕊 | C80: ="20220113114" -> 20220113114 | D80: 《公共基础知识》 | E80: 104.16 | G80: 78
A81: 20122040101-企业发展服务中心工作人员(钟山产业园区管委会) | B81: 潘湲 | C81: ="20220123918" -> 20220123918 | D81: 《公共基础知识》 | E81: 104.07 | G81: 79
A82: 20122040101-企业发展服务中心工作人员(钟山产业园区管委会) | B82: 张启刚 | C82: ="20220112114" -> 20220112114 | D82: 《公共基础知识》 | E82: 104.04 | G82: 80
A83: 20122040101-企业发展服务中心工作人员(钟山产业园区管委会) | B83: 张雪清 | C83: ="20220101101" -> 20220101101 | D83: 《公共基础知识》 | E83: 103.92 | G83: 81
A84: 20122040101-企业发展服务中心工作人员(钟山产业园区管委会) | B84: 赵蓉 | C84: ="20220133207" -> 20220133207 | D84: 《公共基础知识》 | E84: 103.8 | G84: 82
A85: 20122040101-企业发展服务中心工作人员(钟山产业园区管委会) | B85: 王飞翔 | C85: ="20220111623" -> 20220111623 | D85: 《公共基础知识》 | E85: 103.71 | G85: 83
A86: 20122040101-企业发展服务中心工作人员(钟山产业园区管委会) | B86: 蔺维友 | C86: ="20220071516" -> 20220071516 | D86: 《公共基础知识》 | E86: 103.63 | G86: 84
A87: 20122040101-企业发展服务中心工作人员(钟山产业园区管委会) | B87: 李娟 | C87: ="20220102709" -> 20220102709 | D87: 《公共基础知识》 | E87: 103.6 | G87: 85
A88: 20122040101-企业发展服务中心工作人员(钟山产业园区管委会) | B88: 刘隆龙 | C88: ="20220130817" -> 20220130817 | D88: 《公共基础知识》 | E88: 103.38 | G88: 86
A89: 20122040101-企业发展服务中心工作人员(钟山产业园区管委会) | B89: 毕金影 | C89: ="20220112606" -> 20220112606 | D89: 《公共基础知识》 | E89: 103.28 | G89: 87
A90: 20122040101-企业发展服务中心工作人员(钟山产业园区管委会) | B90: 何凯 | C90: ="20220130608" -> 20220130608 | D90: 《公共基础知识》 | E90: 103.25 | G90: 88
A91: 20122040101-企业发展服务中心工作人员(钟山产业园区管委会) | B91: 陈洁 | C91: ="20220073121" -> 20220073121 | D91: 《公共基础知识》 | E91: 103.12 | G91: 89
A92: 20122040101-企业发展服务中心工作人员(钟山产业园区管委会) | B92: 梁臣芳 | C92: ="20220123119" -> 20220123119 | D92: 《公共基础知识》 | E92: 103.03 | G92: 90
A93: 20122040101-企业发展服务中心工作人员(钟山产业园区管委会) | B93: 秦硕 | C93: ="20220071302" -> 20220071302 | D93: 《公共基础知识》 | E93: 103 | G93: 91
A94: 20122040101-企业发展服务中心工作人员(钟山产业园区管委会) | B94: 路韫之 | C94: ="20220093918" -> 20220093918 | D94: 《公共基础知识》 | E94: 102.95 | G94: 92
A95: 20122040101-企业发展服务中心工作人员(钟山产业园区管委会) | B95: 李雪艳 | C95: ="20220091430" -> 20220091430 | D95: 《公共基础知识》 | E95: 102.94 | G95: 93
A96: 20122040101-企业发展服务中心工作人员(钟山产业园区管委会) | B96: 陈涛 | C96: ="20220073803" -> 20220073803 | D96: 《公共基础知识》 | E96: 102.89 | G96: 94
A97: 20122040101-企业发展服务中心工作人员(钟山产业园区管委会) | B97: 王苗苗 | C97: ="20220084404" -> 20220084404 | D97: 《公共基础知识》 | E97: 102.88 | G97: 95
A98: 20122040101-企业发展服务中心工作人员(钟山产业园区管委会) | B98: 刘充 | C98: ="20220120613" -> 20220120613 | D98: 《公共基础知识》 | E98: 102.78 | G98: 96
A99: 20122040101-企业发展服务中心工作人员(钟山产业园区管委会) | B99: 韩爽 | C99: ="20220071630" -> 20220071630 | D99: 《公共基础知识》 | E99: 102.72 | G99: 97
A100: 20122040101-企业发展服务中心工作人员(钟山产业园区管委会) | B100: 朱江 | C100: ="20220092702" -> 20220092702 | D100: 《公共基础知识》 | E100: 102.45 | G100: 98
A101: 20122040101-企业发展服务中心工作人员(钟山产业园区管委会) | B101: 王双 | C101: ="20220123226" -> 20220123226 | D101: 《公共基础知识》 | E101: 102.17 | G101: 99
A102: 20122040101-企业发展服务中心工作人员(钟山产业园区管委会) | B102: 温家玉 | C102: ="20220070610" -> 20220070610 | D102: 《公共基础知识》 | E102: 102.04 | G102: 100
A103: 20122040101-企业发展服务中心工作人员(钟山产业园区管委会) | B103: 邹鹏 | C103: ="20220103626" -> 20220103626 | D103: 《公共基础知识》 | E103: 101.97 | G103: 101
A104: 20122040101-企业发展服务中心工作人员(钟山产业园区管委会) | B104: 李锦玉 | C104: ="20220094510" -> 20220094510 | D104: 《公共基础知识》 | E104: 101.93 | G104: 102
A105: 20122040101-企业发展服务中心工作人员(钟山产业园区管委会) | B105: 刁游 | C105: ="20220074707" -> 20220074707 | D105: 《公共基础知识》 | E105: 101.86 | G105: 103
A106: 20122040101-企业发展服务中心工作人员(钟山产业园区管委会) | B106: 田大米 | C106: ="20220084207" -> 20220084207 | D106: 《公共基础知识》 | E106: 101.84 | G106: 104
A107: 20122040101-企业发展服务中心工作人员(钟山产业园区管委会) | B107: 邹伟 | C107: ="20220075103" -> 20220075103 | D107: 《公共基础知识》 | E107: 101.75 | G107: 105
A108: 20122040101-企业发展服务中心工作人员(钟山产业园区管委会) | B108: 李金 | C108: ="20220093206" -> 20220093206 | D108: 《公共基础知识》 | E108: 101.64 | G108: 106
A109: 20122040101-企业发展服务中心工作人员(钟山产业园区管委会) | B109: 宫婷 | C109: ="20220102620" -> 20220102620 | D109: 《公共基础知识》 | E109: 101.62 | G109: 107
A110: 20122040101-企业发展服务中心工作人员(钟山产业园区管委会) | B110: 黄怡 | C110: ="20220072625" -> 20220072625 | D110: 《公共基础知识》 | E110: 101.51 | G110: 108
A111: 20122040101-企业发展服务中心工作人员(钟山产业园区管委会) | B111: 朱鑫 | C111: ="20220102015" -> 20220102015 | D111: 《公共基础知识》 | E111: 101.43 | G111: 109
A112: 20122040101-企业发展服务中心工作人员(钟山产业园区管委会) | B112: 郭娇 | C112: ="20220113405" -> 20220113405 | D112: 《公共基础知识》 | E112: 101.37 | G112: 110
A113: 20122040101-企业发展服务中心工作人员(钟山产业园区管委会) | B113: 沈亮莹 | C113: ="20220131832" -> 20220131832 | D113: 《公共基础知识》 | E113: 101.34 | G113: 111
A114: 20122040101-企业发展服务中心工作人员(钟山产业园区管委会) | B114: 唐诗 | C114: ="20220131911" -> 20220131911 | D114: 《公共基础知识》 | E114: 101.34 | G114: 111
A115: 20122040101-企业发展服务中心工作人员(钟山产业园区管委会) | B115: 廖飞 | C115: ="20220104203" -> 20220104203 | D115: 《公共基础知识》 | E115: 101.33 | G115: 113
A116: 20122040101-企业发展服务中心工作人员(钟山产业园区管委会) | B116: 蒋泽莉 | C116: ="20220075007" -> 20220075007 | D116: 《公共基础知识》 | E116: 101.18 | G116: 114
A117: 20122040101-企业发展服务中心工作人员(钟山产业园区管委会) | B117: 陈金会 | C117: ="20220100409" -> 20220100409 | D117: 《公共基础知识》 | E117: 101.08 | G117: 115
A118: 20122040101-企业发展服务中心工作人员(钟山产业园区管委会) | B118: 徐成义 | C118: ="20220120830" -> 20220120830 | D118: 《公共基础知识》 | E118: 100.99 | G118: 116
A119: 20122040101-企业发展服务中心工作人员(钟山产业园区管委会) | B119: 王长发 | C119: ="20220131017" -> 20220131017 | D119: 《公共基础知识》 | E119: 100.91 | G119: 117
A120: 20122040101-企业发展服务中心工作人员(钟山产业园区管委会) | B120: 万昕宇 | C120: ="20220120227" -> 20220120227 | D120: 《公共基础知识》 | E120: 100.84 | G120: 118
A121: 20122040101-企业发展服务中心工作人员(钟山产业园区管委会) | B121: 赵泽雄 | C121: ="20220073924" -> 20220073924 | D121: 《公共基础知识》 | E121: 100.71 | G121: 119
A122: 20122040101-企业发展服务中心工作人员(钟山产业园区管委会) | B122: 蒋佩雯 | C122: ="20220080701" -> 20220080701 | D122: 《公共基础知识》 | E122: 100.71 | G122: 119
A123: 20122040101-企业发展服务中心工作人员(钟山产业园区管委会) | B123: 陈殿 | C123: ="20220100122" -> 20220100122 | D123: 《公共基础知识》 | E123: 100.68 | G123: 121
A124: 20122040101-企业发展服务中心工作人员(钟山产业园区管委会) | B124: 王梓霖 | C124: ="20220123609" -> 20220123609 | D124: 《公共基础知识》 | E124: 100.64 | G124: 122
A125: 20122040101-企业发展服务中心工作人员(钟山产业园区管委会) | B125: 陈孟哲 | C125: ="20220132724" -> 20220132724 | D125: 《公共基础知识》 | E125: 100.6 | G125: 123
A126: 20122040101-企业发展服务中心工作人员(钟山产业园区管委会) | B126: 刘海涛 | C126: ="20220093331" -> 20220093331 | D126: 《公共基础知识》 | E126: 100.3 | G126: 124
A127: 20122040101-企业发展服务中心工作人员(钟山产业园区管委会) | B127: 王晨 | C127: ="20220111909" -> 20220111909 | D127: 《公共基础知识》 | E127: 100.29 | G127: 125
A128: 20122040101-企业发展服务中心工作人员(钟山产业园区管委会) | B128: 陆梅 | C128: ="20220083819" -> 20220083819 | D128: 《公共基础知识》 | E128: 100.23 | G128: 126
A129: 20122040101-企业发展服务中心工作人员(钟山产业园区管委会) | B129: 马浩 | C129: ="20220100514" -> 20220100514 | D129: 《公共基础知识》 | E129: 100.23 | G129: 126
A130: 20122040101-企业发展服务中心工作人员(钟山产业园区管委会) | B130: 王艳 | C130: ="20220103616" -> 20220103616 | D130: 《公共基础知识》 | E130: 100.11 | G130: 128
A131: 20122040101-企业发展服务中心工作人员(钟山产业园区管委会) | B131: 徐昆 | C131: ="20220075923" -> 20220075923 | D131: 《公共基础知识》 | E131: 99.9 | G131: =SUMPRODUCT(--((A131=$A$3:$A$16021)*$E$3:$E$16021>E131))+1 -> 129
A132: 20122040101-企业发展服务中心工作人员(钟山产业园区管委会) | B132: 唐弘琳 | C132: ="20220121217" -> 20220121217 | D132: 《公共基础知识》 | E132: 99.86 | G132: 130
A133: 20122040101-企业发展服务中心工作人员(钟山产业园区管委会) | B133: 穆春梅 | C133: ="20220080206" -> 20220080206 | D133: 《公共基础知识》 | E133: 99.84 | G133: 131
A134: 20122040101-企业发展服务中心工作人员(钟山产业园区管委会) | B134: 兰敬宇 | C134: ="20220091821" -> 20220091821 | D134: 《公共基础知识》 | E134: 99.75 | G134: 132
A135: 20122040101-企业发展服务中心工作人员(钟山产业园区管委会) | B135: 林丹 | C135: ="20220103210" -> 20220103210 | D135: 《公共基础知识》 | E135: 99.72 | G135: 133
A136: 20122040101-企业发展服务中心工作人员(钟山产业园区管委会) | B136: 李春 | C136: ="20220074128" -> 20220074128 | D136: 《公共基础知识》 | E136: 99.6 | G136: 134
A137: 20122040101-企业发展服务中心工作人员(钟山产业园区管委会) | B137: 谷杨 | C137: ="20220132707" -> 20220132707 | D137: 《公共基础知识》 | E137: 99.53 | G137: 135
A138: 20122040101-企业发展服务中心工作人员(钟山产业园区管委会) | B138: 柯佳佳 | C138: ="20220082927" -> 20220082927 | D138: 《公共基础知识》 | E138: 99.51 | G138: 136
A139: 20122040101-企业发展服务中心工作人员(钟山产业园区管委会) | B139: 任术 | C139: ="20220082406" -> 20220082406 | D139: 《公共基础知识》 | E139: 99.44 | G139: 137
A140: 20122040101-企业发展服务中心工作人员(钟山产业园区管委会) | B140: 张佰玉 | C140: ="20220101529" -> 20220101529 | D140: 《公共基础知识》 | E140: 99.32 | G140: 138
A141: 20122040101-企业发展服务中心工作人员(钟山产业园区管委会) | B141: 刘雪梅 | C141: ="20220113120" -> 20220113120 | D141: 《公共基础知识》 | E141: 99.04 | G141: 139
A142: 20122040101-企业发展服务中心工作人员(钟山产业园区管委会) | B142: 伍艳 | C142: ="20220074422" -> 20220074422 | D142: 《公共基础知识》 | E142: 99.02 | G142: 140
A143: 20122040101-企业发展服务中心工作人员(钟山产业园区管委会) | B143: 詹红朝 | C143: ="20220100525" -> 20220100525 | D143: 《公共基础知识》 | E143: 99.02 | G143: 140
A144: 20122040101-企业发展服务中心工作人员(钟山产业园区管委会) | B144: 马琳琳 | C144: ="20220100224" -> 20220100224 | D144: 《公共基础知识》 | E144: 98.85 | G144: 142
A145: 20122040101-企业发展服务中心工作人员(钟山产业园区管委会) | B145: 李崟滢 | C145: ="20220102732" -> 20220102732 | D145: 《公共基础知识》 | E145: 98.72 | G145: 143
A146: 20122040101-企业发展服务中心工作人员(钟山产业园区管委会) | B146: 吴娟 | C146: ="20220124131" -> 20220124131 | D146: 《公共基础知识》 | E146: 98.7 | G146: 144
A147: 20122040101-企业发展服务中心工作人员(钟山产业园区管委会) | B147: 焦情 | C147: ="20220113329" -> 20220113329 | D147: 《公共基础知识》 | E147: 98.39 | G147: 145
A148: 20122040101-企业发展服务中心工作人员(钟山产业园区管委会) | B148: 梁明阳 | C148: ="20220120708" -> 20220120708 | D148: 《公共基础知识》 | E148: 98.32 | G148: 146
A149: 20122040101-企业发展服务中心工作人员(钟山产业园区管委会) | B149: 唐雄 | C149: ="20220083516" -> 20220083516 | D149: 《公共基础知识》 | E149: 98.23 | G149: 147
A150: 20122040101-企业发展服务中心工作人员(钟山产业园区管委会) | B150: 张学府 | C150: ="20220084710" -> 20220084710 | D150: 《公共基础知识》 | E150: 98.18 | G150: 148
A151: 20122040101-企业发展服务中心工作人员(钟山产业园区管委会) | B151: 陈吉 | C151: ="20220122201" -> 20220122201 | D151: 《公共基础知识》 | E151: 98.18 | G151: 148
A152: 20122040101-企业发展服务中心工作人员(钟山产业园区管委会) | B152: 田维兴 | C152: ="20220090908" -> 20220090908 | D152: 《公共基础知识》 | E152: 98.15 | G152: 150
A153: 20122040101-企业发展服务中心工作人员(钟山产业园区管委会) | B153: 薛驰 | C153: ="20220093114" -> 20220093114 | D153: 《公共基础知识》 | E153: 98.04 | G153: 151
A154: 20122040101-企业发展服务中心工作人员(钟山产业园区管委会) | B154: 杨璐仪 | C154: ="20220112005" -> 20220112005 | D154: 《公共基础知识》 | E154: 98.02 | G154: 152
A155: 20122040101-企业发展服务中心工作人员(钟山产业园区管委会) | B155: 张雪谨 | C155: ="20220101230" -> 20220101230 | D155: 《公共基础知识》 | E155: 97.98 | G155: 153
A156: 20122040101-企业发展服务中心工作人员(钟山产业园区管委会) | B156: 李秋燕 | C156: ="20220091525" -> 20220091525 | D156: 《公共基础知识》 | E156: 97.96 | G156: 154
A157: 20122040101-企业发展服务中心工作人员(钟山产业园区管委会) | B157: 黄颖 | C157: ="20220082923" -> 20220082923 | D157: 《公共基础知识》 | E157: 97.91 | G157: 155
A158: 20122040101-企业发展服务中心工作人员(钟山产业园区管委会) | B158: 谭恋 | C158: ="20220071328" -> 20220071328 | D158: 《公共基础知识》 | E158: 97.79 | G158: 156
A159: 20122040101-企业发展服务中心工作人员(钟山产业园区管委会) | B159: 吕升 | C159: ="20220071028" -> 20220071028 | D159: 《公共基础知识》 | E159: 97.78 | G159: 157
A160: 20122040101-企业发展服务中心工作人员(钟山产业园区管委会) | B160: 吴世尧 | C160: ="20220113330" -> 20220113330 | D160: 《公共基础知识》 | E160: 97.73 | G160: 158
A161: 20122040101-企业发展服务中心工作人员(钟山产业园区管委会) | B161: 王蜜 | C161: ="20220100301" -> 20220100301 | D161: 《公共基础知识》 | E161: 97.69 | G161: 159
A162: 20122040101-企业发展服务中心工作人员(钟山产业园区管委会) | B162: 包钰 | C162: ="20220101312" -> 20220101312 | D162: 《公共基础知识》 | E162: 97.67 | G162: 160
A163: 20122040101-企业发展服务中心工作人员(钟山产业园区管委会) | B163: 徐旭 | C163: ="20220091206" -> 20220091206 | D163: 《公共基础知识》 | E163: 97.66 | G163: 161
A164: 20122040101-企业发展服务中心工作人员(钟山产业园区管委会) | B164: 万春礼 | C164: ="20220110111" -> 20220110111 | D164: 《公共基础知识》 | E164: 97.54 | G164: 162
A165: 20122040101-企业发展服务中心工作人员(钟山产业园区管委会) | B165: 李盛 | C165: ="20220104830" -> 20220104830 | D165: 《公共基础知识》 | E165: 97.51 | G165: 163
A166: 20122040101-企业发展服务中心工作人员(钟山产业园区管委会) | B166: 刘艳 | C166: ="20220131201" -> 20220131201 | D166: 《公共基础知识》 | E166: 97.39 | G166: 164
A167: 20122040101-企业发展服务中心工作人员(钟山产业园区管委会) | B167: 罗敏慎 | C167: ="20220092919" -> 20220092919 | D167: 《公共基础知识》 | E167: 97.27 | G167: 165
A168: 20122040101-企业发展服务中心工作人员(钟山产业园区管委会) | B168: 杨盼盼 | C168: ="20220113218" -> 20220113218 | D168: 《公共基础知识》 | E168: 97.14 | G168: 166
A169: 20122040101-企业发展服务中心工作人员(钟山产业园区管委会) | B169: 李艳军 | C169: ="20220112627" -> 20220112627 | D169: 《公共基础知识》 | E169: 96.98 | G169: 167
A170: 20122040101-企业发展服务中心工作人员(钟山产业园区管委会) | B170: 黄孟兰 | C170: ="20220132205" -> 20220132205 | D170: 《公共基础知识》 | E170: 96.93 | G170: 168
A171: 20122040101-企业发展服务中心工作人员(钟山产业园区管委会) | B171: 吴姗 | C171: ="20220121413" -> 20220121413 | D171: 《公共基础知识》 | E171: 96.92 | G171: 169
A172: 20122040101-企业发展服务中心工作人员(钟山产业园区管委会) | B172: 周贞广 | C172: ="20220074213" -> 20220074213 | D172: 《公共基础知识》 | E172: 96.7 | G172: 170
A173: 20122040101-企业发展服务中心工作人员(钟山产业园区管委会) | B173: 吴国钱 | C173: ="20220122713" -> 20220122713 | D173: 《公共基础知识》 | E173: 96.6 | G173: 171
A174: 20122040101-企业发展服务中心工作人员(钟山产业园区管委会) | B174: 所海琴 | C174: ="20220122509" -> 20220122509 | D174: 《公共基础知识》 | E174: 96.57 | G174: 172
A175: 20122040101-企业发展服务中心工作人员(钟山产业园区管委会) | B175: 张映 | C175: ="20220072827" -> 20220072827 | D175: 《公共基础知识》 | E175: 96.56 | G175: 173
A176: 20122040101-企业发展服务中心工作人员(钟山产业园区管委会) | B176: 张志渝 | C176: ="20220071121" -> 20220071121 | D176: 《公共基础知识》 | E176: 96.53 | G176: 174
A177: 20122040101-企业发展服务中心工作人员(钟山产业园区管委会) | B177: 郭睿 | C177: ="20220092914" -> 20220092914 | D177: 《公共基础知识》 | E177: 96.26 | G177: 175
A178: 20122040101-企业发展服务中心工作人员(钟山产业园区管委会) | B178: 马舒曼 | C178: ="20220124410" -> 20220124410 | D178: 《公共基础知识》 | E178: 96.26 | G178: 175
A179: 20122040101-企业发展服务中心工作人员(钟山产业园区管委会) | B179: 李寿旭 | C179: ="20220124308" -> 20220124308 | D179: 《公共基础知识》 | E179: 96.23 | G179: 177
A180: 20122040101-企业发展服务中心工作人员(钟山产业园区管委会) | B180: 廖艳飞 | C180: ="20220111410" -> 20220111410 | D180: 《公共基础知识》 | E180: 96.18 | G180: 178
A181: 20122040101-企业发展服务中心工作人员(钟山产业园区管委会) | B181: 赵富贵 | C181: ="20220131615" -> 20220131615 | D181: 《公共基础知识》 | E181: 96.17 | G181: 179
A182: 20122040101-企业发展服务中心工作人员(钟山产业园区管委会) | B182: 王会香 | C182: ="20220081532" -> 20220081532 | D182: 《公共基础知识》 | E182: 96.04 | G182: 180
A183: 20122040101-企业发展服务中心工作人员(钟山产业园区管委会) | B183: 杨欢 | C183: ="20220111814" -> 20220111814 | D183: 《公共基础知识》 | E183: 95.94 | G183: 181
A184: 20122040101-企业发展服务中心工作人员(钟山产业园区管委会) | B184: 吴愁 | C184: ="20220102931" -> 20220102931 | D184: 《公共基础知识》 | E184: 95.78 | G184: 182
A185: 20122040101-企业发展服务中心工作人员(钟山产业园区管委会) | B185: 叶春花 | C185: ="20220090226" -> 20220090226 | D185: 《公共基础知识》 | E185: 95.69 | G185: 183
A186: 20122040101-企业发展服务中心工作人员(钟山产业园区管委会) | B186: 蔡贤智 | C186: ="20220094217" -> 20220094217 | D186: 《公共基础知识》 | E186: 95.53 | G186: 184
A187: 20122040101-企业发展服务中心工作人员(钟山产业园区管委会) | B187: 张同贵 | C187: ="20220092732" -> 20220092732 | D187: 《公共基础知识》 | E187: 95.38 | G187: 185
A188: 20122040101-企业发展服务中心工作人员(钟山产业园区管委会) | B188: 邹章俊 | C188: ="20220093323" -> 20220093323 | D188: 《公共基础知识》 | E188: 95.36 | G188: 186
A189: 20122040101-企业发展服务中心工作人员(钟山产业园区管委会) | B189: 马关丽 | C189: ="20220124016" -> 20220124016 | D189: 《公共基础知识》 | E189: 95.32 | G189: 187
A190: 20122040101-企业发展服务中心工作人员(钟山产业园区管委会) | B190: 彭双会 | C190: ="20220110405" -> 20220110405 | D190: 《公共基础知识》 | E190: 95.28 | G190: 188
A191: 20122040101-企业发展服务中心工作人员(钟山产业园区管委会) | B191: 李贵梅 | C191: ="20220104301" -> 20220104301 | D191: 《公共基础知识》 | E191: 95.25 | G191: 189
A192: 20122040101-企业发展服务中心工作人员(钟山产业园区管委会) | B192: 孔维艳 | C192: ="20220102312" -> 20220102312 | D192: 《公共基础知识》 | E192: 94.84 | G192: 190
A193: 20122040101-企业发展服务中心工作人员(钟山产业园区管委会) | B193: 刘展然 | C193: ="20220093726" -> 20220093726 | D193: 《公共基础知识》 | E193: 94.7 | G193: 191
A194: 20122040101-企业发展服务中心工作人员(钟山产业园区管委会) | B194: 翁才倩 | C194: ="20220084528" -> 20220084528 | D194: 《公共基础知识》 | E194: 94.68 | G194: 192
A195: 20122040101-企业发展服务中心工作人员(钟山产业园区管委会) | B195: 刘豪 | C195: ="20220074325" -> 20220074325 | D195: 《公共基础知识》 | E195: 94.53 | G195: =SUMPRODUCT(--((A195=$A$3:$A$16021)*$E$3:$E$16021>E195))+1 -> 193
A196: 20122040101-企业发展服务中心工作人员(钟山产业园区管委会) | B196: 孙洁 | C196: ="20220120510" -> 20220120510 | D196: 《公共基础知识》 | E196: 94.5 | G196: 194
A197: 20122040101-企业发展服务中心工作人员(钟山产业园区管委会) | B197: 赵泽雄 | C197: ="20220075304" -> 20220075304 | D197: 《公共基础知识》 | E197: 94.47 | G197: 195
A198: 20122040101-企业发展服务中心工作人员(钟山产业园区管委会) | B198: 孙路 | C198: ="20220103025" -> 20220103025 | D198: 《公共基础知识》 | E198: 94.29 | G198: 196
A199: 20122040101-企业发展服务中心工作人员(钟山产业园区管委会) | B199: 程菁菁 | C199: ="20220113110" -> 20220113110 | D199: 《公共基础知识》 | E199: 94.24 | G199: 197
A200: 20122040101-企业发展服务中心工作人员(钟山产业园区管委会) | B200: 冯燕 | C200: ="20220071129" -> 20220071129 | D200: 《公共基础知识》 | E200: 94.16 | G200: 198
... 4300 more rows
